fUSD/lending_fUSD_20240118
["ID","MTS","AMOUNT","RATE_DAILY","PERIOD"]
[312085614,1705606496662,-500.0,0.00044383,30]
[312085615,1705606496700,-500.0,0.00044383,30]
[312085616,1705606496733,-500.0,0.00044383,30]
[312085617,1705606496767,-500.0,0.00044383,30]
[312085618,1705606496799,-500.0,0.00044383,30]
[312085619,1705606496833,-540.58,0.00044383,30]
[312085620,1705606496866,-502.58,0.00044383,30]
[312085621,1705606496898,-500.0,0.00044383,30]
[312085622,1705606496932,-502.04,0.00044383,30]
[312085623,1705606496966,-500.0,0.00044383,30]
[312085624,1705606496998,-500.0,0.00044383,30]
[312085625,1705606497033,-361.71508862,0.00044383,30]
[312085626,1705606497066,-500.0,0.00044383,30]
[312085627,1705606497101,-500.0,0.00044383,30]
[312085628,1705606497138,-500.0,0.00044383,30]
[312085629,1705606497172,-497.54338056,0.00044383,30]
[312085630,1705606497211,-500.0,0.00044383,30]
[312085631,1705606497244,-500.0,0.00044383,30]
[312085632,1705606497278,-500.0,0.00044383,30]
[312085633,1705606497311,-531.3,0.00044383,30]
[312085634,1705606497344,-500.0,0.00044383,30]
[312085635,1705606497377,-500.0,0.00044383,30]
[312085636,1705606497411,-500.0,0.00044383,30]
[312085637,1705606497445,-612.49,0.00044383,30]
[312085638,1705606497477,-500.0,0.00044383,30]
[312085639,1705606497686,-500.0,0.00044383,30]
[312085640,1705606497723,-500.0,0.00044383,30]
[312085641,1705606497757,-500.0,0.00044383,30]
[312085642,1705606497791,-500.0,0.00044383,30]
[312085643,1705606497823,-500.0,0.00044383,30]
[312085644,1705606497855,-500.0,0.00044383,30]
[312085645,1705606497886,-500.0,0.00044383,30]
[312085646,1705606497919,-500.0,0.00044383,30]
[312085647,1705606497954,-513.69675629,0.00044383,30]
[312085648,1705606497987,-639.11178866,0.00044383,30]
[312085649,1705606498020,-500.0,0.00044383,30]
[312085650,1705606498055,-500.0,0.00044383,30]
[312085651,1705606498095,-500.0,0.00044383,30]
[312085652,1705606498136,-500.0,0.00044383,30]
[312085653,1705606498177,-195.56,0.00044383,30]
[312085654,1705606498217,-500.0,0.00044383,30]
[312085655,1705606498258,-1175.61,0.00044383,30]
[312085656,1705606498300,-2696.13,0.00044383,30]
[312085657,1705606498344,-674.58,0.00044383,30]
[312085658,1705606498387,-500.0,0.00044383,30]
[312085659,1705606498429,-500.0,0.00044383,30]
[312085660,1705606498470,-500.0,0.00044383,30]
[312085661,1705606498514,-500.0,0.00044383,30]
[312085662,1705606498556,-500.0,0.00044383,30]
[312085663,1705606498600,-1592.84,0.00044383,30]
[312085664,1705606498638,-408.71594263,0.00044383,30]
[312085665,1705606498679,-500.0,0.00044383,30]
[312085666,1705606498718,-500.0,0.00044383,30]
[312085667,1705606498756,-500.0,0.00044383,30]
[312085668,1705606498795,-500.0,0.00044383,30]
[312085669,1705606498834,-500.0,0.00044383,30]
[312085670,1705606498872,-500.0,0.00044383,30]
[312085671,1705606498910,-5048.59,0.00044383,30]
[312085672,1705606498949,-500.0,0.00044383,30]
[312085673,1705606498988,-500.0,0.00044383,30]
[312085674,1705606499025,-500.0,0.00044383,30]
[312085675,1705606499064,-686.44,0.00044383,30]
[312085676,1705606499106,-500.0,0.00044383,30]
[312085677,1705606499146,-500.0,0.00044383,30]
[312085678,1705606499185,-392.87,0.00044383,30]
[312085679,1705606499226,-500.0,0.00044383,30]
[312085680,1705606499265,-509.49,0.00044383,30]
[312085681,1705606499306,-515.4808826,0.00044383,30]
[312085682,1705606499349,-500.0,0.00044383,30]
[312085683,1705606499391,-500.0,0.00044383,30]
[312085684,1705606499432,-500.0,0.00044383,30]
[312085685,1705606499471,-500.0,0.00044383,30]
[312085686,1705606499508,-500.0,0.00044383,30]
[312085687,1705606499544,-506.2835616,0.00044383,30]
[312085688,1705606499580,-410.0722572,0.00044383,30]
[312085689,1705606499621,-500.0,0.00044383,30]
[312085690,1705606499659,-500.0,0.00044383,30]
[312085691,1705606499696,-500.0,0.00044383,30]
[312085692,1705606499733,-669.06,0.00044383,30]
[312085693,1705606499770,-727.13,0.00044383,30]
[312085694,1705606499808,-2082.54,0.00044383,30]
[312085695,1705606499844,-339.3,0.00044383,30]
[312085696,1705606499881,-500.0,0.00044383,30]
[312085697,1705606499921,-500.0,0.00044383,30]
[312085698,1705606499961,-500.0,0.00044383,30]
[312085699,1705606500001,-811.76,0.00044383,30]
[312085700,1705606500039,-500.0,0.00044383,30]
[312085701,1705606500079,-500.0,0.00044383,30]
[312085702,1705606500123,-500.0,0.00044383,30]
[312085703,1705606500162,-500.0,0.00044383,30]
[312085704,1705606500203,-774.86,0.00044383,30]
[312085705,1705606500246,-500.0,0.00044383,30]
[312085706,1705606500285,-500.0,0.00044383,30]
[312085707,1705606500325,-500.0,0.00044383,30]
[312085708,1705606500365,-500.0,0.00044383,30]
[312085709,1705606500406,-500.45,0.00044383,30]
[312085710,1705606500451,-500.0,0.00044383,30]
[312085711,1705606500492,-500.0,0.00044383,30]
[312085712,1705606500531,-827.24,0.00044383,30]
[312085713,1705606500570,-500.0,0.00044383,30]
[312085714,1705606500610,-500.0,0.00044383,30]
[312085715,1705606500647,-500.0,0.00044383,30]
[312085716,1705606500687,-500.0,0.00044383,30]
[312085717,1705606500730,-500.0,0.00044383,30]
[312085718,1705606500767,-500.0,0.00044383,30]
[312085719,1705606500803,-500.0,0.00044383,30]
[312085720,1705606500839,-500.0,0.00044383,30]
[312085721,1705606500877,-500.0,0.00044383,30]
[312085722,1705606500915,-500.0,0.00044383,30]
[312085723,1705606500953,-727.83,0.00044383,30]
[312085724,1705606500989,-500.0,0.00044383,30]
[312085725,1705606501025,-500.0,0.00044383,30]
[312085726,1705606501063,-500.0,0.00044383,30]
[312085727,1705606501102,-500.0,0.00044383,30]
[312085728,1705606501140,-500.0,0.00044383,30]
[312085729,1705606501179,-500.0,0.00044383,30]
[312085730,1705606501218,-196.13070587,0.00044383,30]
[312085731,1705606501258,-500.0,0.00044383,30]
[312085732,1705606501298,-500.0,0.00044383,30]
[312085733,1705606501338,-500.0,0.00044383,30]
[312085734,1705606501382,-500.0,0.00044383,30]
[312085735,1705606501424,-500.0,0.00044383,30]
[312085736,1705606501465,-500.0,0.00044383,30]
[312085737,1705606501506,-500.0,0.00044383,30]
[312085738,1705606501543,-500.0,0.00044383,30]
[312085739,1705606501579,-500.0,0.00044383,30]
[312085740,1705606501612,-500.0,0.00044383,30]
[312085741,1705606501645,-500.0,0.00044383,30]
[312085742,1705606501678,-500.0,0.00044383,30]
[312085743,1705606501863,-500.0,0.00044383,30]
[312085744,1705606501898,-500.0,0.00044383,30]
[312085745,1705606501931,-500.0,0.00044383,30]
[312085746,1705606501964,-500.0,0.00044383,30]
[312085747,1705606501998,-500.0,0.00044383,30]
[312085748,1705606502036,-500.0,0.00044383,30]
[312085749,1705606502074,-500.0,0.00044383,30]
[312085750,1705606502114,-500.0,0.00044383,30]
[312085751,1705606502153,-500.0,0.00044383,30]
[312085752,1705606502190,-500.0,0.00044383,30]
[312085753,1705606502228,-500.0,0.00044383,30]
[312085754,1705606502263,-500.0,0.00044383,30]
[312085755,1705606502300,-514.65270892,0.00044383,30]
[312085756,1705606502337,-500.0,0.00044383,30]
[312085757,1705606502373,-500.0,0.00044383,30]
[312085758,1705606502407,-3629.42,0.00044383,30]
[312085759,1705606502439,-500.0,0.00044383,30]
[312085760,1705606502474,-500.0,0.00044383,30]
[312085761,1705606502507,-500.0,0.00044383,30]
[312085762,1705606502541,-311.63,0.00044383,30]
[312085763,1705606502574,-500.0,0.00044383,30]
[312085764,1705606502607,-500.0,0.00044383,30]
[312085765,1705606502639,-500.0,0.00044383,30]
[312085766,1705606502673,-500.0,0.00044383,30]
[312085767,1705606502708,-520.35,0.00044383,30]
[312085768,1705606502742,-950.09,0.00044383,30]
[312085769,1705606502774,-1033.92,0.00044383,30]
[312085770,1705606502807,-500.0,0.00044383,30]
[312085771,1705606502839,-150.0,0.00044383,30]
[312085772,1705606502872,-500.0,0.00044383,30]
[312085773,1705606502904,-500.0,0.00044383,30]
[312085774,1705606502936,-511.767518,0.00044383,30]
[312085775,1705606502976,-500.0,0.00044383,30]
[312085776,1705606503009,-278.31,0.00044383,30]
[312085777,1705606503044,-519.52340747,0.00044383,30]
[312085778,1705606503080,-500.0,0.00044383,30]
[312085779,1705606503115,-500.0,0.00044383,30]
[312085780,1705606503150,-500.0,0.00044383,30]
[312085781,1705606503183,-500.0,0.00044383,30]
[312085782,1705606503217,-500.0,0.00044383,30]
[312085783,1705606503252,-500.0,0.00044383,30]
[312085784,1705606503287,-500.0,0.00044383,30]
[312085785,1705606503323,-500.0,0.00044383,30]
[312085786,1705606503359,-500.0,0.00044383,30]
[312085787,1705606503393,-421.52627511,0.00044383,30]
[312085788,1705606503426,-500.0,0.00044383,30]
[312085789,1705606503458,-500.0,0.00044383,30]
[312085790,1705606503489,-500.0,0.00044383,30]
[312085791,1705606503523,-500.0,0.00044383,30]
[312085792,1705606503554,-842.69218247,0.000444,30]
[312085793,1705606503587,-627.59757762,0.000444,120]
[312085794,1705606503622,-1009.39011208,0.000444,30]
[312085795,1705606503660,-152.75033,0.000444,30]
[312085796,1705606503704,-150.0,0.00044425,30]
[312085797,1705606503742,-4333.28687368,0.0004444,120]
[312085798,1705606503776,-1659.81920071,0.000445,60]
[312085799,1705606503809,-1000.0,0.000445,120]
[312085800,1705606503843,-322.63686798,0.00044575,30]
[312085801,1705606503878,-153.42489222,0.00044575,30]
[312085802,1705606503911,-162.83558471,0.00044575,30]
[312085803,1705606503946,-449.31124385,0.00044575,30]
[312085804,1705606503981,-150.0,0.00044579,30]
[312085805,1705606504015,-152.75033,0.000446,30]
[312085806,1705606504053,-207.0,0.00044612,33]
[312085807,1705606504096,-23692.77728324,0.00044656,30]
[312085808,1705606506437,160.25,0.00021255,2]
[312085809,1705606506676,249.48,0.00019904,2]
[312085810,1705606507231,155.0,0.00019903,2]
[312085811,1705606508039,1852.58418893,0.00019903,2]
[312085812,1705606508464,3028.96265398,0.00019902,2]
[312085813,1705606508591,189.25781532,0.00019902,2]
[312085839,1705606928327,237.0,0.00019887,2]
[312085844,1705607011402,161.32,0.00021393,2]
[312085845,1705607055482,393.5,0.00021559,2]
[312085846,1705607059148,2000.0,0.00021417,2]
[312085847,1705607105532,1301.27,0.00021524,2]
[312085848,1705607111211,150.0,0.00021589,2]
[312085849,1705607186430,667.2,0.00021368,2]
[312085888,1705607258284,3535.39,0.00021559,2]
[312085889,1705607285408,-3030.11138034,0.00021607,2]
[312085890,1705607285433,-270.03425655,0.00021608,2]
[312085891,1705607285458,-228.31585659,0.00021608,2]
[312085892,1705607285483,-190.90927065,0.00021609,2]
[312085893,1705607285508,-1852.58418893,0.00021609,2]
[312085894,1705607285531,-215.11040998,0.0002161,2]
[312085895,1705607285555,-867.19372156,0.0002161,2]
[312085896,1705607285578,-155.0,0.0002161,2]
[312085897,1705607285601,-150.0,0.0002161,2]
[312085898,1705607285627,-150.0,0.0002161,2]
[312085899,1705607285649,-7105.1667781,0.00021611,5]
[312085900,1705607285672,-1060.96854815,0.00021611,2]
[312085901,1705607285694,-16763.70229707,0.00021615,2]
[312085902,1705607285716,-418.6,0.00021644,2]
[312085903,1705607285737,-378.54,0.00021644,2]
[312085904,1705607285761,-166.1,0.00021732,2]
[312085905,1705607285784,-332.8,0.00021756,2]
[312085906,1705607285807,-499.99,0.00021805,2]
[312085907,1705607285833,-10000.0,0.00021918,2]
[312085908,1705607285856,-250.0,0.00021918,2]
[312085909,1705607285884,-160.25,0.00021968,2]
[312085910,1705607285909,-733.08,0.00021975,2]
[312085911,1705607285935,-286.95,0.00021979,2]
[312085912,1705607285958,-163.29,0.00021983,2]
[312085913,1705607285980,-150.0,0.00022,2]
[312085914,1705607286002,-497.47,0.00022,2]
[312085915,1705607286025,-1041.88400935,0.00022022,2]
[312085916,1705607286049,-160.66,0.00022023,2]
[312085917,1705607286073,-237.0,0.00022151,2]
[312085918,1705607286098,-166.1,0.00022275,2]
[312085919,1705607286122,-150.0,0.00022548,2]
[312085920,1705607286144,-224.05,0.00022678,2]
[312085921,1705607286168,-161.32,0.00022763,2]
[312085922,1705607286195,-150.0,0.0002277,2]
[312085923,1705607286221,-166.1,0.00022819,2]
[312085924,1705607286254,-193.74358034,0.00022895,3]
[312085925,1705607286279,-1370.98811656,0.00022895,2]
[312085926,1705607286302,-1255.53256283,0.00022895,2]
[312085927,1705607286330,-171.79656324,0.00022895,2]
[312085928,1705607286353,-542.62714348,0.00022895,2]
[312085929,1705607286377,-354.27308638,0.00022895,2]
[312085930,1705607286399,-2796.84901767,0.00022895,2]
[312085931,1705607286422,-155.0,0.00022895,2]
[312085932,1705607286446,-158.7139359,0.00022895,2]
[312085933,1705607286469,-278.60981478,0.00022895,2]
[312085934,1705607286492,-155.0,0.00022895,2]
[312085935,1705607286516,-5099.53737617,0.00022895,2]
[312085936,1705607286538,-225.94823342,0.00022895,2]
[312085937,1705607286560,-157.46669912,0.00022895,2]
[312085938,1705607286585,-25236.72359848,0.00022895,2]
[312085939,1705607286608,-231.88293603,0.00022896,2]
[312085940,1705607286631,-4219.9613,0.00022897,2]
[312085941,1705607286654,-110349.5605,0.00022897,2]
[312085942,1705607286677,-894.0449,0.00022897,2]
[312085943,1705607286701,-182.32333052,0.00022897,2]
[312085944,1705607286726,-2570.46707495,0.00022897,2]
[312085945,1705607286750,-2570.46707488,0.00022897,2]
[312085946,1705607286772,-2570.46707488,0.00022898,2]
[312085947,1705607286794,-2570.46707488,0.00022898,2]
[312085948,1705607286816,-1745.73990336,0.00022898,2]
[312085949,1705607352393,157.269795,0.00021508,2]
[312085950,1705607354946,600.44876388,0.00020696,2]
[312085951,1705607374042,169.68,0.0001763,2]
[312085952,1705607422726,334.9,0.00019964,2]
[312085962,1705607432360,-165.2,0.00021894,2]
[312085964,1705607432371,-228.31585659,0.00021907,2]
[312085965,1705607432382,-66.23738076,0.00021907,2]
[312085967,1705607432401,-12168.11059009,0.00021907,2]
[312085969,1705607432416,-1922.96638505,0.00021907,2]
[312085971,1705607432432,-326.43046132,0.00021907,2]
[312085973,1705607432447,-2279.95747985,0.00021907,2]
[312085974,1705607432459,-5980.04252015,0.00021908,2]
[312085976,1705607432478,-948.21495962,0.00021908,2]
[312085978,1705607432493,-551.42604,0.00021908,2]
[312085980,1705607432522,-13023.58049051,0.00021908,2]
[312085982,1705607432536,-35440.61979265,0.00021908,2]
[312085983,1705607432546,-239.72,0.00021909,2]
[312085984,1705607432557,-334.9,0.00022228,2]
[312085985,1705607432568,-729.81,0.00022248,2]
[312085986,1705607432579,-7105.1667781,0.00022291,5]
[312085988,1705607432590,-827.68622733,0.00022292,2]
[312085990,1705607432604,-1024.8979616,0.00022292,2]
[312085992,1705607432616,-300.0,0.00022293,2]
[312085994,1705607432627,-3030.11138034,0.00022293,2]
[312085996,1705607432639,-558.83363746,0.00022294,2]
[312085998,1705607432650,-159.85,0.00022295,2]
[312086000,1705607432661,-731.45,0.00022408,2]
[312086002,1705607432673,-1249.51532349,0.000227,2]
[312086004,1705607432685,-4350.07010966,0.00022763,2]
[312086006,1705607432696,-155.0,0.00022765,2]
[312086007,1705607432710,-420.30646271,0.00022765,2]
[312086008,1705607432721,-225.29267651,0.00022765,4]
[312086009,1705607432739,-716.99,0.00022794,2]
[312086011,1705607432749,-8952.8747,0.00022797,2]
[312086013,1705607432760,-1060.54954017,0.00022895,2]
[312086015,1705607432771,-710.58,0.00022895,2]
[312086018,1705607432781,-155.0,0.00022896,2]
[312086020,1705607432792,-360.4683,0.00022897,2]
[312086022,1705607432802,-403.813,0.00022897,2]
[312086024,1705607432813,-1367.70625461,0.00022897,2]
[312086026,1705607432823,-190.82978685,0.00022897,2]
[312086028,1705607432833,-866.86815322,0.00022897,2]
[312086030,1705607432843,-711.60693504,0.00022897,2]
[312086031,1705607432856,-1367.70625459,0.00022897,2]
[312086032,1705607432866,-1367.70625459,0.00022898,2]
[312086033,1705607432878,-155.0,0.00022898,2]
[312086034,1705607432888,-1897.33113849,0.00022898,2]
[312086035,1705607432899,-1367.70625459,0.00022898,2]
[312086036,1705607432909,-1369.16,0.00022898,2]
[312086037,1705607432919,-272.16196799,0.00022899,3]
[312086038,1705607432933,-1000.0,0.000229,2]
[312086039,1705607432945,-6716.58,0.000229,2]
[312086040,1705607432954,-186.18880338,0.000229,2]
[312086041,1705607432964,-157.269795,0.000229,2]
[312086042,1705607432978,-163.47955236,0.000229,2]
[312086043,1705607432988,-1476.22210456,0.000229,2]
[312086044,1705607432998,-239.52293688,0.000229,2]
[312086045,1705607433008,-155.4439,0.00022994,2]
[312086046,1705607433017,-3043.00044003,0.00022995,2]
[312086047,1705607433029,-2618.74812066,0.00022995,2]
[312086048,1705607433039,-1028.385226,0.00022995,2]
[312086049,1705607433049,-713.85100062,0.00022995,2]
[312086050,1705607433066,-828.72683838,0.00022995,2]
[312086051,1705607433076,-2056.770452,0.00022995,2]
[312086052,1705607433085,-391.7658,0.00022995,2]
[312086053,1705607433095,-587.648701,0.00022995,2]
[312086054,1705607433105,-783.531601,0.00022995,2]
[312086055,1705607433114,-293.54629117,0.00022995,2]
[312086056,1705607433123,-1242.632148,0.00022995,2]
[312086057,1705607433133,-1863.948222,0.00022995,2]
[312086058,1705607433142,-261.82531987,0.00022995,2]
[312086059,1705607433154,-1292.96276069,0.00022995,2]
[312086060,1705607433165,-832.5788,0.00022995,2]
[312086061,1705607433177,-97.89741644,0.00022995,2]
[312086062,1705607433186,-1401.787004,0.00022995,2]
[312086063,1705607433196,-2102.680507,0.00022995,2]
[312086064,1705607433206,-2803.574009,0.00022995,2]
[312086065,1705607433215,-26.28209638,0.00022995,2]
[312086066,1705607433232,-711.02282862,0.00022995,2]
[312086067,1705607433243,-416.35392078,0.00022995,2]
[312086068,1705607433254,-689.60346722,0.00022995,2]
[312086069,1705607433263,-1474.60985,0.00022995,2]
[312086070,1705607433272,-215.02098694,0.00022995,2]
[312086071,1705607433282,-366.63065322,0.00022995,2]
[312086072,1705607433291,-644.17083976,0.00022995,2]
[312086073,1705607433300,-166.72791523,0.00022995,2]
[312086077,1705607438354,-391.45736558,0.00022898,2]
[312086078,1705607438366,-976.24888901,0.00022898,2]
[312086079,1705607438376,-501.02208477,0.00022995,2]
[312086080,1705607438385,-3926.21149808,0.00022995,2]
[312086081,1705607438396,-1516.49389328,0.00022995,2]
[312086082,1705607438405,-155.0,0.00022995,2]
[312086083,1705607438415,-289.15150313,0.00022995,2]
[312086084,1705607438424,-341.83071978,0.00022995,2]
[312086085,1705607438433,-384.58030079,0.00022995,2]
[312086086,1705607438442,-177.82092224,0.00022995,2]
[312086087,1705607438451,-940.48918206,0.00022995,2]
[312086088,1705607438461,-288.92756394,0.00022995,2]
[312086089,1705607438471,-501.38582748,0.00022995,2]
[312086090,1705607438484,-3680.83873111,0.00022995,2]
[312086091,1705607438494,-263.3780082,0.00022995,2]
[312086092,1705607438503,-2570.963066,0.00022996,2]
[312086093,1705607438512,-979.414501,0.00022996,2]
[312086094,1705607438521,-3106.580371,0.00022996,2]
[312086095,1705607438530,-351.68868603,0.00022996,2]
[312086096,1705607438541,-739.337599,0.00022996,2]
[312086097,1705607438552,-1055.46617102,0.00022996,2]
[312086098,1705607438565,-1357.97505595,0.00022996,2]
[312086099,1705607438576,-1843.262313,0.00022996,2]
[312086100,1705607438586,-337.48827186,0.00022997,3]
[312086101,1705607438595,-234.9596881,0.00022997,3]
[312086102,1705607438608,-12.72947891,0.00022997,3]
[312086103,1705607438617,-301.95056997,0.00022997,3]
[312086104,1705607438627,-505714.14246892,0.00022997,2]
[312086105,1705607438636,-3599.348292,0.00022997,2]
[312086106,1705607438645,-1371.180302,0.00022997,2]
[312086107,1705607438655,-4349.21252,0.00022997,2]
[312086108,1705607438664,-4906.254517,0.00022997,2]
[312086109,1705607438673,-2580.567239,0.00022997,2]
[312086110,1705607438682,-80046.99360145,0.00022998,2]
[312086111,1705607438691,-183.06065813,0.00022998,2]
[312086112,1705607438700,-186.1460564,0.00022998,2]
[312086113,1705607438709,-4113.540905,0.00022998,2]
[312086114,1705607438718,-1567.063203,0.00022998,2]
[312086115,1705607438732,-4970.528594,0.00022998,2]
[312086116,1705607438741,-5607.148019,0.00022998,2]
[312086117,1705607438750,-2949.219701,0.00022998,2]
[312086118,1705607438759,-622.92929018,0.00022999,2]
[312086119,1705607438768,-2074.93277737,0.00022999,2]
[312086120,1705607438777,-150.0,0.00022999,2]
[312086121,1705607438786,-150.0,0.00022999,2]
[312086122,1705607438795,-150.0,0.00022999,2]
[312086123,1705607438804,-150.0,0.00022999,2]
[312086124,1705607438813,-1955107.12912285,0.00023,3]
[312086125,1705607438822,-3387540.78263017,0.00023,2]
[312086126,1705607438831,-126994.17088762,0.00023,2]
[312086127,1705607438841,-327.49,0.00023,2]
[312086128,1705607438850,-160.66,0.00023059,2]
[312086129,1705607438861,-645.27373596,0.00023288,4]
[312086130,1705607438870,-383.56223056,0.00023288,4]
[312086131,1705607438879,-407.08896178,0.00023288,4]
[312086132,1705607438889,-500.0,0.00023288,2]
[312086133,1705607438902,-456.31085018,0.00023288,2]
[312086134,1705607438911,-398.62248771,0.00023288,2]
[312086135,1705607438920,-161.31843398,0.00023288,4]
[312086136,1705607438929,-162.83558471,0.00023288,4]
[312086137,1705607438938,-449.31124385,0.00023288,2]
[312086138,1705607438948,-322.63686798,0.00023288,4]
[312086139,1705607438957,-153.42489222,0.00023288,4]
[312086140,1705607438966,-166.1,0.00023362,2]
[312086141,1705607438980,-206.0,0.0002366,2]
[312086142,1705607438990,-170.16124,0.0002366,2]
[312086143,1705607439000,-203.0,0.0002366,2]
[312086144,1705607439009,-159.85,0.00023693,2]
[312086145,1705607439019,-180.0,0.00023715,2]
[312086146,1705607439028,-166.1,0.00023905,2]
[312086147,1705607439247,-168.39287458,0.00023997,2]
[312086148,1705607439257,-431.53216335,0.00024,2]
[312086149,1705607439266,-201.13102968,0.00024,2]
[312086150,1705607439277,-667.2,0.00024039,2]
[312086151,1705607439287,-160.66,0.00024094,2]
[312086152,1705607439296,-299.999999,0.000241,2]
[312086153,1705607439305,-161.32,0.00024133,2]
[312086154,1705607439315,-198.15,0.00024154,2]
[312086155,1705607439324,-239.52293679,0.00024258,2]
[312086156,1705607439334,-167.0,0.00024297,2]
[312086157,1705607439343,-167.0,0.00024297,2]
[312086158,1705607439352,-180.02,0.00024297,2]
[312086159,1705607439362,-166.1,0.00024448,2]
[312086160,1705607439371,-332.8,0.00024476,2]
[312086161,1705607439381,-334.9,0.00024492,2]
[312086162,1705607439389,-163.82,0.00024552,2]
[312086163,1705607439399,-250.0,0.00024658,2]
[312086164,1705607439408,-166.1,0.00024992,2]
[312086165,1705607439418,-303.46202419,0.00025,2]
[312086166,1705607439427,-933.68908946,0.00025,2]
[312086167,1705607439436,-202.02493081,0.00025,2]
[312086168,1705607439446,-1248.86230478,0.00025,2]
[312086169,1705607439455,-158.67264273,0.00025,2]
[312086170,1705607439464,-1584.10702682,0.00025,2]
[312086171,1705607439474,-167.37478937,0.00025,2]
[312086172,1705607439485,-2002.75826668,0.00025,2]
[312086173,1705607439494,-250.0,0.00025,3]
[312086174,1705607439503,-182.32333051,0.00025026,2]
[312086175,1705607439513,-159.85,0.00025091,2]
[312086176,1705607439522,-160.66,0.0002513,2]
[312086177,1705607439531,-161.32,0.00025503,2]
[312086178,1705607439540,-167.0,0.00025633,2]
[312086179,1705607439549,-4907.21632641,0.00025841,2]
[312086180,1705607439559,-2989.0,0.000259,2]
[312086181,1705607439568,-206.0,0.00025932,5]
[312086182,1705607439577,-5000.0,0.00026,2]
[312086183,1705607439587,-29608.0,0.00026,2]
[312086184,1705607439596,-160.66,0.00026166,2]
[312086185,1705607439605,-8601.83289866,0.000264,2]
[312086186,1705607439614,-159.85,0.00026489,2]
[312086187,1705607439623,-19674.17,0.00026575,2]
[312086188,1705607439632,-667.2,0.0002671,2]
[312086189,1705607439641,-334.9,0.00026755,2]
[312086190,1705607439649,-161.32,0.00026873,2]
[312086191,1705607439658,-167.0,0.0002697,2]
[312086192,1705607439667,-155.0,0.00027,2]
[312086193,1705607439677,-300.0,0.00027,3]
[312086194,1705607439686,-182.32333051,0.00027155,3]
[312086195,1705607439695,-332.8,0.00027195,2]
[312086196,1705607439705,-155.0,0.00027397,2]
[312086197,1705607439715,-1752.83,0.00027397,2]
[312086198,1705607439724,-263.15,0.00027397,2]
[312086199,1705607439735,-158.69,0.00027397,2]
[312086200,1705607439744,-8000.0,0.000274,2]
[312086201,1705607439753,-203.0550109,0.00028,2]
[312086202,1705607439762,-929.11400258,0.00028,2]
[312086203,1705607439771,-688.79473801,0.00028,2]
[312086204,1705607439782,-200.0,0.00028,2]
[312086205,1705607439791,-20000.0,0.00028,2]
[312086206,1705607439801,-206.0,0.00028203,9]
[312086207,1705607439810,-161.32,0.00028243,2]
[312086208,1705607439819,-167.0,0.00028307,2]
[312086209,1705607439828,-167.0,0.00028307,2]
[312086210,1705607439838,-180.02,0.00028307,2]
[312086211,1705607439847,-163.47955234,0.0002835,2]
[312086212,1705607439858,-1476.22210455,0.0002835,2]
[312086213,1705607439866,-158.69,0.00028451,2]
[312086214,1705607439875,-1146.0,0.00028533,5]
[312086215,1705607439884,-155.0,0.00028767,2]
[312086216,1705607439895,-1752.83,0.00028767,2]
[312086217,1705607439907,-4221.0,0.000288,2]
[312086218,1705607439916,-314.21211402,0.00029,2]
[312086219,1705607439925,-34030.61655907,0.00029,2]
[312086220,1705607439934,-350.0,0.00029,3]
[312086221,1705607439943,-334.9,0.00029019,2]
[312086222,1705607439953,-160.0,0.000291,2]